[Event "*** Titled Tuesday Blitz"]
[Site "Chess.com"]
[Date "2020.04.21"]
[Round "8"]
[White "Akhayan"]
[Black "harkerchess"]
[Result "1-0"]
[WhiteElo "2248"]
[BlackElo "1949"]
[TimeControl "180+1"]
[EndTime "11:39:37 PDT"]
[Termination "Akhayan won by checkmate"]

1. d4 {[%clk 0:03:00.9]} 1... d5 {[%clk 0:02:57.2]} 2. Nf3 {[%clk 0:02:59.9]}
2... Nf6 {[%clk 0:02:56.6]} 3. g3 {[%clk 0:02:59.9]} 3... c5 {[%clk 0:02:55.9]}
4. Bg2 {[%clk 0:02:59.1]} 4... Nc6 {[%clk 0:02:53.5]} 5. O-O {[%clk 0:02:58.6]}
5... Bg4 {[%clk 0:02:51.2]} 6. Ne5 {[%clk 0:02:54.2]} 6... Bd7 {[%clk
0:02:41.4]} 7. c4 {[%clk 0:02:51.1]} 7... cxd4 {[%clk 0:02:36.4]} 8. Nxd7 {[%clk
0:02:45.3]} 8... Qxd7 {[%clk 0:02:35.5]} 9. cxd5 {[%clk 0:02:45.1]} 9... Nxd5
{[%clk 0:02:35.1]} 10. e3 {[%clk 0:02:31.7]} 10... e5 {[%clk 0:02:28.9]} 11.
exd4 {[%clk 0:02:31]} 11... exd4 {[%clk 0:02:28.9]} 12. Re1+ {[%clk 0:02:24.2]}
12... Be7 {[%clk 0:02:28.9]} 13. Bg5 {[%clk 0:02:20.7]} 13... f6 {[%clk
0:02:28.6]} 14. Qh5+ {[%clk 0:01:58.1]} 14... g6 {[%clk 0:02:22.7]} 15. Qh6
{[%clk 0:01:58.3]} 15... fxg5 {[%clk 0:02:19.8]} 16. Qg7 {[%clk 0:01:57.5]}
16... O-O-O {[%clk 0:02:19.1]} 17. Nd2 {[%clk 0:01:41.9]} 17... Bb4 {[%clk
0:02:12.6]} 18. Qxd7+ {[%clk 0:01:38.1]} 18... Rxd7 {[%clk 0:02:13.5]} 19. Red1
{[%clk 0:01:33.3]} 19... Kc7 {[%clk 0:02:08.5]} 20. Rac1 {[%clk 0:01:31.6]}
20... Kb8 {[%clk 0:02:03.7]} 21. Ne4 {[%clk 0:01:30.5]} 21... Re8 {[%clk
0:01:59.4]} 22. Nxg5 {[%clk 0:01:30.2]} 22... Re5 {[%clk 0:01:57]} 23. h4 {[%clk
0:01:27.9]} 23... h6 {[%clk 0:01:54.6]} 24. Bh3 {[%clk 0:01:25.1]} 24... Rde7
{[%clk 0:01:47.9]} 25. Nf3 {[%clk 0:01:24.2]} 25... Re2 {[%clk 0:01:46.7]} 26.
Nxd4 {[%clk 0:01:24.2]} 26... Rxb2 {[%clk 0:01:33.8]} 27. Rxc6 {[%clk
0:01:17.2]} 27... bxc6 {[%clk 0:01:34.7]} 28. Nxc6+ {[%clk 0:01:16]} 28... Kc7
{[%clk 0:01:28]} 29. Nxe7 {[%clk 0:01:13.2]} 29... Nxe7 {[%clk 0:01:28]} 30.
Rd7+ {[%clk 0:01:12.5]} 30... Kb6 {[%clk 0:01:27.5]} 31. Bg2 {[%clk 0:01:11.9]}
31... Rd2 {[%clk 0:01:20.5]} 32. Rb7+ {[%clk 0:01:10.4]} 32... Kc5 {[%clk
0:01:20.5]} 33. Rxe7 {[%clk 0:01:06.2]} 33... Rxa2 {[%clk 0:01:17]} 34. Re6
{[%clk 0:01:03.1]} 34... a5 {[%clk 0:01:15.1]} 35. Rc6+ {[%clk 0:01:03.1]} 35...
Kd4 {[%clk 0:01:10.9]} 36. Rxg6 {[%clk 0:01:02.7]} 36... a4 {[%clk 0:01:11]} 37.
Ra6 {[%clk 0:01:02.2]} 37... a3 {[%clk 0:01:10.7]} 38. Bh3 {[%clk 0:00:55.5]}
38... Be1 {[%clk 0:01:08.8]} 39. Bf5 {[%clk 0:00:51.7]} 39... Bxf2+ {[%clk
0:01:06.9]} 40. Kg2 {[%clk 0:00:51.5]} 40... Be3+ {[%clk 0:01:05.3]} 41. Kf3
{[%clk 0:00:50.9]} 41... Rf2+ {[%clk 0:01:04.7]} 42. Kg4 {[%clk 0:00:50.9]}
42... a2 {[%clk 0:00:58.9]} 43. Be6 {[%clk 0:00:49.3]} 43... Rf6 {[%clk
0:00:54.9]} 44. Ra4+ {[%clk 0:00:48.5]} 44... Ke5 {[%clk 0:00:49.4]} 45. Bxa2
{[%clk 0:00:48.3]} 45... Rg6+ {[%clk 0:00:46.3]} 46. Kf3 {[%clk 0:00:46.9]}
46... Bd4 {[%clk 0:00:43.5]} 47. Ra5+ {[%clk 0:00:44.7]} 47... Kf6 {[%clk
0:00:41.9]} 48. Bb1 {[%clk 0:00:44.2]} 48... Rg8 {[%clk 0:00:40.2]} 49. Ra6+
{[%clk 0:00:44.1]} 49... Kg7 {[%clk 0:00:39.4]} 50. Rg6+ {[%clk 0:00:43.3]}
50... Kf7 {[%clk 0:00:39.5]} 51. Rxh6 {[%clk 0:00:40.6]} 51... Rb8 {[%clk
0:00:35.6]} 52. Bd3 {[%clk 0:00:37.2]} 52... Be5 {[%clk 0:00:33]} 53. g4 {[%clk
0:00:35.5]} 53... Rb3 {[%clk 0:00:31.3]} 54. Ke4 {[%clk 0:00:34.3]} 54... Bg7
{[%clk 0:00:30.6]} 55. Ra6 {[%clk 0:00:28.3]} 55... Rb4+ {[%clk 0:00:29.7]} 56.
Kf3 {[%clk 0:00:27]} 56... Rd4 {[%clk 0:00:27.6]} 57. Be4 {[%clk 0:00:25.4]}
57... Bf6 {[%clk 0:00:26]} 58. g5 {[%clk 0:00:25.1]} 58... Be7 {[%clk
0:00:25.5]} 59. Ra7 {[%clk 0:00:22]} 59... Rd1 {[%clk 0:00:21.2]} 60. Kg4 {[%clk
0:00:20.4]} 60... Rg1+ {[%clk 0:00:19.7]} 61. Kh5 {[%clk 0:00:20.3]} 61... Rh1
{[%clk 0:00:19.8]} 62. Bd5+ {[%clk 0:00:20.2]} 62... Kf8 {[%clk 0:00:19.5]} 63.
Ra8+ {[%clk 0:00:20.3]} 63... Kg7 {[%clk 0:00:19.8]} 64. Rg8+ {[%clk 0:00:19.7]}
64... Kh7 {[%clk 0:00:20.1]} 65. g6# {[%clk 0:00:18.6]} 1-0

[Event "*** Titled Tuesday Blitz"]
[Site "Chess.com"]
[Date "2020.04.21"]
[Round "8"]
[White "Treacherous_horse64"]
[Black "inegrepus"]
[Result "0-1"]
[WhiteElo "2407"]
[BlackElo "2295"]
[TimeControl "180+1"]
[EndTime "11:39:42 PDT"]
[Termination "inegrepus won by resignation"]

1. d4 {[%clk 0:03:00]} 1... Nf6 {[%clk 0:02:59]} 2. Nf3 {[%clk 0:02:58.7]} 2...
d5 {[%clk 0:02:58.7]} 3. c4 {[%clk 0:02:55.4]} 3... dxc4 {[%clk 0:02:59.6]} 4.
e3 {[%clk 0:02:52.4]} 4... e6 {[%clk 0:02:57.5]} 5. Bxc4 {[%clk 0:02:51.5]} 5...
a6 {[%clk 0:02:57.7]} 6. Be2 {[%clk 0:02:50.1]} 6... c5 {[%clk 0:02:57.8]} 7.
O-O {[%clk 0:02:37.2]} 7... cxd4 {[%clk 0:02:56.3]} 8. Nxd4 {[%clk 0:02:35]}
8... Be7 {[%clk 0:02:55.3]} 9. a3 {[%clk 0:02:28.3]} 9... O-O {[%clk 0:02:54.6]}
10. b4 {[%clk 0:02:28.5]} 10... Qb6 {[%clk 0:02:52.6]} 11. Bb2 {[%clk
0:02:26.5]} 11... Nc6 {[%clk 0:02:52.3]} 12. Nxc6 {[%clk 0:02:24.5]} 12... Qxc6
{[%clk 0:02:52.3]} 13. Bf3 {[%clk 0:02:23.4]} 13... Qb6 {[%clk 0:02:51.7]} 14.
Bd4 {[%clk 0:02:18.7]} 14... Qc7 {[%clk 0:02:47.3]} 15. Nd2 {[%clk 0:02:15.1]}
15... Bd7 {[%clk 0:02:44.5]} 16. Rc1 {[%clk 0:02:14.6]} 16... Bc6 {[%clk
0:02:44.8]} 17. Nb3 {[%clk 0:02:11.9]} 17... Rad8 {[%clk 0:02:39.1]} 18. Qc2
{[%clk 0:02:06.2]} 18... Nd5 {[%clk 0:02:33.1]} 19. Na5 {[%clk 0:02:06]} 19...
Rc8 {[%clk 0:02:24.5]} 20. Qb2 {[%clk 0:01:44.6]} 20... f6 {[%clk 0:02:08.4]}
21. Be2 {[%clk 0:01:30]} 21... Qd7 {[%clk 0:02:07.5]} 22. Nxc6 {[%clk
0:01:22.2]} 22... Rxc6 {[%clk 0:02:07.1]} 23. Rxc6 {[%clk 0:01:22.3]} 23... Qxc6
{[%clk 0:02:07.4]} 24. Rc1 {[%clk 0:01:22.9]} 24... Qd7 {[%clk 0:02:01.5]} 25.
Qc2 {[%clk 0:01:22.3]} 25... Bd6 {[%clk 0:01:51.1]} 26. Bc4 {[%clk 0:01:09.5]}
26... Bb8 {[%clk 0:01:49.3]} 27. g3 {[%clk 0:01:06]} 27... Rc8 {[%clk
0:01:47.1]} 28. Qa2 {[%clk 0:00:57.4]} 28... b5 {[%clk 0:01:41.6]} 29. Kg2
{[%clk 0:00:38.5]} 29... bxc4 {[%clk 0:01:30.1]} 30. Rxc4 {[%clk 0:00:39.4]}
30... Rxc4 {[%clk 0:01:26.4]} 31. Qxc4 {[%clk 0:00:40.3]} 31... Qb7 {[%clk
0:01:23.8]} 32. e4 {[%clk 0:00:36.2]} 32... Nc7 {[%clk 0:01:17.6]} 33. f3 {[%clk
0:00:36.2]} 33... Kf7 {[%clk 0:01:15.4]} 34. Bc5 {[%clk 0:00:36.1]} 34... Nb5
{[%clk 0:01:11.2]} 35. Qd3 {[%clk 0:00:35]} 35... Ba7 {[%clk 0:01:04.6]} 36. a4
{[%clk 0:00:28.5]} 36... Bxc5 {[%clk 0:01:02.7]} 37. axb5 {[%clk 0:00:09.7]}
37... Qxb5 {[%clk 0:00:42.4]} 38. Qxb5 {[%clk 0:00:09.4]} 38... axb5 {[%clk
0:00:42.3]} 39. bxc5 {[%clk 0:00:10.3]} 39... b4 {[%clk 0:00:37.7]} 40. c6
{[%clk 0:00:10]} 40... Ke7 {[%clk 0:00:35]} 41. c7 {[%clk 0:00:04.6]} 41... Kd7
{[%clk 0:00:34.5]} 42. e5 {[%clk 0:00:05.5]} 42... fxe5 {[%clk 0:00:33.3]} 43.
f4 {[%clk 0:00:06.1]} 43... exf4 {[%clk 0:00:33.5]} 44. gxf4 {[%clk 0:00:06.5]}
44... b3 {[%clk 0:00:32.6]} 45. f5 {[%clk 0:00:07.4]} 45... exf5 {[%clk
0:00:32.8]} 46. c8=Q+ {[%clk 0:00:07.4]} 46... Kxc8 {[%clk 0:00:32.7]} 47. Kg3
{[%clk 0:00:07.4]} 47... b2 {[%clk 0:00:32.5]} 48. Kf4 {[%clk 0:00:08.3]} 48...
b1=Q {[%clk 0:00:32.6]} 49. Ke5 {[%clk 0:00:09.2]} 49... Qe4+ {[%clk 0:00:31.2]}
50. Kd6 {[%clk 0:00:08.1]} 50... f4 {[%clk 0:00:27.5]} 51. Kc5 {[%clk 0:00:09]}
51... f3 {[%clk 0:00:27.5]} 52. h4 {[%clk 0:00:09.9]} 52... f2 {[%clk
0:00:27.6]} 53. h5 {[%clk 0:00:10.8]} 53... f1=Q {[%clk 0:00:27.9]} 54. Kd6
{[%clk 0:00:11.7]} 54... Qfd3+ {[%clk 0:00:25.9]} 0-1

[Event "*** Titled Tuesday Blitz"]
[Site "Chess.com"]
[Date "2020.04.21"]
[Round "8"]
[White "ChadBiryani"]
[Black "MisiekZielony"]
[Result "1-0"]
[WhiteElo "2372"]
[BlackElo "2071"]
[TimeControl "180+1"]
[EndTime "11:39:43 PDT"]
[Termination "ChadBiryani won on time"]

1. d4 {[%clk 0:02:54.8]} 1... d5 {[%clk 0:02:58.1]} 2. Bf4 {[%clk 0:02:54.4]}
2... c6 {[%clk 0:02:57.5]} 3. Nc3 {[%clk 0:02:54.1]} 3... Bf5 {[%clk 0:02:50.9]}
4. f3 {[%clk 0:02:54.1]} 4... e6 {[%clk 0:02:50.4]} 5. e4 {[%clk 0:02:53.9]}
5... Bg6 {[%clk 0:02:50.1]} 6. Bd3 {[%clk 0:02:50.6]} 6... Bb4 {[%clk
0:02:48.8]} 7. Ne2 {[%clk 0:02:46.5]} 7... dxe4 {[%clk 0:02:17.3]} 8. fxe4
{[%clk 0:02:43.2]} 8... c5 {[%clk 0:02:09.6]} 9. Bb5+ {[%clk 0:02:22.5]} 9...
Nd7 {[%clk 0:02:02.2]} 10. O-O {[%clk 0:02:21]} 10... a6 {[%clk 0:01:41.3]} 11.
Bd3 {[%clk 0:01:40.2]} 11... cxd4 {[%clk 0:01:36.6]} 12. Nxd4 {[%clk 0:01:39.3]}
12... Bc5 {[%clk 0:01:36.1]} 13. Be3 {[%clk 0:01:34.7]} 13... Ne5 {[%clk
0:01:19.9]} 14. Nf5 {[%clk 0:00:57.9]} 14... Bxe3+ {[%clk 0:01:13.3]} 15. Nxe3
{[%clk 0:00:57.6]} 15... Qb6 {[%clk 0:01:04.3]} 16. Qd2 {[%clk 0:00:43.3]} 16...
Nf6 {[%clk 0:00:59.6]} 17. h3 {[%clk 0:00:39.5]} 17... Rd8 {[%clk 0:00:48.2]}
18. Qe2 {[%clk 0:00:16.1]} 18... Qxb2 {[%clk 0:00:40.5]} 19. Qd2 {[%clk
0:00:06.2]} 19... Qb6 {[%clk 0:00:39]} 20. Qe2 {[%clk 0:00:06.5]} 20... O-O
{[%clk 0:00:37.5]} 21. Rab1 {[%clk 0:00:06.9]} 21... Qc7 {[%clk 0:00:37.3]} 22.
Na4 {[%clk 0:00:06.3]} 22... b5 {[%clk 0:00:36.4]} 23. Nb2 {[%clk 0:00:06.7]}
23... Qc5 {[%clk 0:00:28.5]} 24. Kh2 {[%clk 0:00:05.9]} 24... Rd7 {[%clk
0:00:25.4]} 25. a4 {[%clk 0:00:06.1]} 25... Rb8 {[%clk 0:00:18.9]} 26. axb5
{[%clk 0:00:06.1]} 26... axb5 {[%clk 0:00:19]} 27. Rfd1 {[%clk 0:00:05.8]} 27...
b4 {[%clk 0:00:16]} 28. Nf1 {[%clk 0:00:04.1]} 28... Rbd8 {[%clk 0:00:13.3]} 29.
Ng3 {[%clk 0:00:04.3]} 29... h5 {[%clk 0:00:11.4]} 30. Kh1 {[%clk 0:00:02.9]}
30... h4 {[%clk 0:00:11.3]} 31. Nf1 {[%clk 0:00:03.6]} 31... Qc3 {[%clk
0:00:10.4]} 32. Na4 {[%clk 0:00:03.2]} 32... Qc6 {[%clk 0:00:09.4]} 33. Nb2
{[%clk 0:00:03.5]} 33... Nxe4 {[%clk 0:00:09.1]} 34. Bxe4 {[%clk 0:00:03.6]}
34... Bxe4 {[%clk 0:00:08.1]} 35. Ne3 {[%clk 0:00:03.4]} 35... Rxd1+ {[%clk
0:00:06.9]} 36. Rxd1 {[%clk 0:00:04.3]} 36... Rc8 {[%clk 0:00:06.5]} 37. Rd2
{[%clk 0:00:03.1]} 37... Qc5 {[%clk 0:00:06.6]} 38. Nbd1 {[%clk 0:00:03]} 38...
f5 {[%clk 0:00:06.3]} 39. Nf1 {[%clk 0:00:02.8]} 39... Qc4 {[%clk 0:00:05.3]}
40. Qe1 {[%clk 0:00:02.7]} 40... Nc6 {[%clk 0:00:04.9]} 41. Nde3 {[%clk
0:00:03.6]} 41... Qc5 {[%clk 0:00:04.8]} 42. Qd1 {[%clk 0:00:04.1]} 42... Ne5
{[%clk 0:00:04.7]} 43. Rd8+ {[%clk 0:00:04.2]} 43... Rxd8 {[%clk 0:00:03.6]} 44.
Qxd8+ {[%clk 0:00:05.1]} 44... Kf7 {[%clk 0:00:03.7]} 45. Qxh4 {[%clk
0:00:05.4]} 45... Qd4 {[%clk 0:00:02.5]} 46. Qe1 {[%clk 0:00:05.8]} 46... Qc3
{[%clk 0:00:02.2]} 47. Qe2 {[%clk 0:00:06.2]} 47... Nc6 {[%clk 0:00:01.9]} 48.
Nd1 {[%clk 0:00:06]} 48... Qc5 {[%clk 0:00:01.6]} 49. Qh5+ {[%clk 0:00:06.3]}
49... Ke7 {[%clk 0:00:01.4]} 50. Qg5+ {[%clk 0:00:05.9]} 50... Kd6 {[%clk
0:00:01.2]} 51. Nfe3 {[%clk 0:00:06.2]} 51... Qd4 {[%clk 0:00:01.3]} 52. Qg3+
{[%clk 0:00:05.2]} 1-0

[Event "*** Titled Tuesday Blitz"]
[Site "Chess.com"]
[Date "2020.04.21"]
[Round "8"]
[White "Diego_FloresQ"]
[Black "AniJak"]
[Result "1-0"]
[WhiteElo "2418"]
[BlackElo "2261"]
[TimeControl "180+1"]
[EndTime "11:39:44 PDT"]
[Termination "Diego_FloresQ won by resignation"]

1. e4 {[%clk 0:02:57.5]} 1... c6 {[%clk 0:02:59.7]} 2. d4 {[%clk 0:02:55.2]}
2... d5 {[%clk 0:03:00.2]} 3. Nc3 {[%clk 0:02:53.4]} 3... dxe4 {[%clk
0:02:59.6]} 4. Nxe4 {[%clk 0:02:53.6]} 4... Nf6 {[%clk 0:03:00]} 5. Nxf6+ {[%clk
0:02:53.1]} 5... gxf6 {[%clk 0:03:00.9]} 6. Nf3 {[%clk 0:02:51.3]} 6... Bg4
{[%clk 0:03:00.5]} 7. Be3 {[%clk 0:02:48.8]} 7... e6 {[%clk 0:02:59.7]} 8. g3
{[%clk 0:02:49.3]} 8... Qd5 {[%clk 0:02:55.5]} 9. Bg2 {[%clk 0:02:49.7]} 9...
Qb5 {[%clk 0:02:54.9]} 10. b3 {[%clk 0:02:46.9]} 10... Nd7 {[%clk 0:02:38]} 11.
c4 {[%clk 0:02:40.7]} 11... Bb4+ {[%clk 0:02:37.2]} 12. Kf1 {[%clk 0:02:33.8]}
12... Qa5 {[%clk 0:02:35.7]} 13. h3 {[%clk 0:02:31.5]} 13... Bxf3 {[%clk
0:02:33.4]} 14. Bxf3 {[%clk 0:02:20.8]} 14... e5 {[%clk 0:02:32.8]} 15. a3
{[%clk 0:02:16.6]} 15... Bc3 {[%clk 0:02:30.3]} 16. Ra2 {[%clk 0:02:16.7]} 16...
O-O {[%clk 0:02:03.8]} 17. Be4 {[%clk 0:01:57]} 17... exd4 {[%clk 0:01:52.8]}
18. Bh6 {[%clk 0:01:49.4]} 18... f5 {[%clk 0:01:48.1]} 19. Qh5 {[%clk
0:01:37.1]} 19... Kh8 {[%clk 0:01:02]} 20. Bxf8 {[%clk 0:01:29.7]} 20... Nxf8
{[%clk 0:01:00.2]} 21. Qxf5 {[%clk 0:01:17.7]} 21... Qxf5 {[%clk 0:00:50.9]} 22.
Bxf5 {[%clk 0:01:18.6]} 22... Rd8 {[%clk 0:00:49.9]} 23. Kg2 {[%clk 0:01:08.3]}
23... Ng6 {[%clk 0:00:41.7]} 24. Rd1 {[%clk 0:01:03.3]} 24... Ne7 {[%clk
0:00:34.1]} 25. Be4 {[%clk 0:00:51.6]} 25... f5 {[%clk 0:00:32.1]} 26. Bd3
{[%clk 0:00:51.4]} 26... c5 {[%clk 0:00:29.3]} 27. Re2 {[%clk 0:00:50.7]} 27...
Rd7 {[%clk 0:00:26]} 28. Re5 {[%clk 0:00:35.6]} 28... Kg7 {[%clk 0:00:22.4]} 29.
Rxc5 {[%clk 0:00:34.2]} 29... Kf6 {[%clk 0:00:21.7]} 30. Rb5 {[%clk 0:00:20.3]}
30... b6 {[%clk 0:00:21.4]} 31. Bc2 {[%clk 0:00:19.7]} 31... Bb2 {[%clk
0:00:20.8]} 32. Rd3 {[%clk 0:00:19.6]} 32... Bxa3 {[%clk 0:00:19.8]} 33. b4
{[%clk 0:00:20.2]} 33... Bb2 {[%clk 0:00:19.4]} 34. Rf3 {[%clk 0:00:20.8]} 34...
Rc7 {[%clk 0:00:15.4]} 35. Bxf5 {[%clk 0:00:20.3]} 35... Nxf5 {[%clk 0:00:15.6]}
36. Rbxf5+ {[%clk 0:00:21.2]} 36... Kg7 {[%clk 0:00:15.5]} 37. Rd5 {[%clk
0:00:19.8]} 37... Rxc4 {[%clk 0:00:15.1]} 38. Rd7+ {[%clk 0:00:20.4]} 38... Kg6
{[%clk 0:00:15.4]} 39. Rxa7 {[%clk 0:00:19.6]} 39... Rxb4 {[%clk 0:00:15.7]} 40.
Ra6 {[%clk 0:00:20.5]} 40... Bc3 {[%clk 0:00:15.1]} 41. g4 {[%clk 0:00:19.6]}
41... Rb5 {[%clk 0:00:15.2]} 42. h4 {[%clk 0:00:19.9]} 42... Ba5 {[%clk
0:00:14.1]} 43. Rd3 {[%clk 0:00:18.8]} 43... Rd5 {[%clk 0:00:14]} 44. Ra7 {[%clk
0:00:19.4]} 44... Rd6 {[%clk 0:00:13.9]} 45. Rb7 {[%clk 0:00:19.8]} 45... Kf6
{[%clk 0:00:13.9]} 46. f4 {[%clk 0:00:19.8]} 46... Ke6 {[%clk 0:00:13.5]} 47.
Kf3 {[%clk 0:00:20.4]} 47... Kd5 {[%clk 0:00:13.7]} 48. Rxh7 {[%clk 0:00:20.5]}
48... Kc4 {[%clk 0:00:13.8]} 49. Rd1 {[%clk 0:00:20.8]} 49... d3 {[%clk
0:00:14.1]} 50. Rc7+ {[%clk 0:00:21.3]} 50... Kb3 {[%clk 0:00:13.9]} 51. Ke3
{[%clk 0:00:20.9]} 51... d2 {[%clk 0:00:14.2]} 52. h5 {[%clk 0:00:20.7]} 52...
Re6+ {[%clk 0:00:14.1]} 53. Kd3 {[%clk 0:00:18.1]} 53... Re1 {[%clk 0:00:14.2]}
54. Rxd2 {[%clk 0:00:18.7]} 54... Bxd2 {[%clk 0:00:14.5]} 55. Kxd2 {[%clk
0:00:19.6]} 55... Rf1 {[%clk 0:00:14.8]} 56. Rf7 {[%clk 0:00:19.4]} 56... Rg1
{[%clk 0:00:14.6]} 57. g5 {[%clk 0:00:19.4]} 57... Kc4 {[%clk 0:00:13.5]} 58. h6
{[%clk 0:00:19.3]} 58... b5 {[%clk 0:00:13.9]} 59. h7 {[%clk 0:00:19.9]} 59...
Rh1 {[%clk 0:00:13.7]} 60. g6 {[%clk 0:00:20.3]} 60... b4 {[%clk 0:00:13.7]} 61.
g7 {[%clk 0:00:20.6]} 61... Rh2+ {[%clk 0:00:13.9]} 62. Ke3 {[%clk 0:00:19.8]}
62... Rh3+ {[%clk 0:00:14]} 63. Ke4 {[%clk 0:00:20.2]} 63... b3 {[%clk
0:00:13.9]} 64. g8=Q {[%clk 0:00:18.3]} 1-0

[Event "*** Titled Tuesday Blitz"]
[Site "Chess.com"]
[Date "2020.04.21"]
[Round "8"]
[White "Anaj14"]
[Black "profofchess"]
[Result "0-1"]
[WhiteElo "2186"]
[BlackElo "2363"]
[TimeControl "180+1"]
[EndTime "11:39:45 PDT"]
[Termination "profofchess won on time"]

1. g3 {[%clk 0:02:53]} 1... d5 {[%clk 0:02:59.2]} 2. Bg2 {[%clk 0:02:53]} 2...
Nc6 {[%clk 0:02:59.7]} 3. c4 {[%clk 0:02:53.1]} 3... d4 {[%clk 0:02:58.5]} 4. e4
{[%clk 0:02:51.8]} 4... e5 {[%clk 0:02:51.3]} 5. d3 {[%clk 0:02:47]} 5... Nf6
{[%clk 0:02:31.5]} 6. Ne2 {[%clk 0:02:46.3]} 6... Bb4+ {[%clk 0:02:25.8]} 7. Nd2
{[%clk 0:02:39.5]} 7... O-O {[%clk 0:02:25]} 8. O-O {[%clk 0:02:38.7]} 8... a5
{[%clk 0:02:24.5]} 9. h3 {[%clk 0:02:37.4]} 9... a4 {[%clk 0:02:15.5]} 10. a3
{[%clk 0:02:23.1]} 10... Bc5 {[%clk 0:02:14.3]} 11. f4 {[%clk 0:02:20.5]} 11...
exf4 {[%clk 0:01:57.5]} 12. Nxf4 {[%clk 0:02:19.5]} 12... Ne5 {[%clk 0:01:53.1]}
13. Nf3 {[%clk 0:02:18.6]} 13... Nxf3+ {[%clk 0:01:45.5]} 14. Qxf3 {[%clk
0:02:17.7]} 14... Nd7 {[%clk 0:01:44.9]} 15. Bd2 {[%clk 0:02:02.2]} 15... Ne5
{[%clk 0:01:41.7]} 16. Qe2 {[%clk 0:02:02.4]} 16... f6 {[%clk 0:01:37.4]} 17.
Bb4 {[%clk 0:01:54]} 17... Qd6 {[%clk 0:01:32.4]} 18. Qd2 {[%clk 0:01:48]} 18...
c6 {[%clk 0:01:31.6]} 19. Kh2 {[%clk 0:01:43.1]} 19... Bd7 {[%clk 0:01:29.9]}
20. Bxc5 {[%clk 0:01:39.8]} 20... Qxc5 {[%clk 0:01:29.5]} 21. Rfd1 {[%clk
0:01:33.5]} 21... Ra6 {[%clk 0:01:28.4]} 22. Qb4 {[%clk 0:01:32.5]} 22... b6
{[%clk 0:01:11.3]} 23. Rac1 {[%clk 0:01:20.5]} 23... Qxb4 {[%clk 0:00:58.6]} 24.
axb4 {[%clk 0:01:20.2]} 24... a3 {[%clk 0:00:59.5]} 25. b3 {[%clk 0:01:20.3]}
25... a2 {[%clk 0:00:49.7]} 26. Ra1 {[%clk 0:01:19.8]} 26... Ra3 {[%clk
0:00:48.1]} 27. Rd2 {[%clk 0:01:19.7]} 27... Rfa8 {[%clk 0:00:47.3]} 28. Rb2
{[%clk 0:01:19.3]} 28... Kf7 {[%clk 0:00:37.9]} 29. Bf1 {[%clk 0:01:17.6]} 29...
g5 {[%clk 0:00:33.5]} 30. Nh5 {[%clk 0:01:14.9]} 30... Kg6 {[%clk 0:00:27.7]}
31. g4 {[%clk 0:01:15.2]} 31... Bxg4 {[%clk 0:00:17.1]} 32. hxg4 {[%clk
0:01:06.1]} 32... Nxg4+ {[%clk 0:00:18]} 33. Kg3 {[%clk 0:01:05.9]} 33... Ne3
{[%clk 0:00:17.5]} 34. Be2 {[%clk 0:00:58.4]} 34... f5 {[%clk 0:00:16.4]} 35.
exf5+ {[%clk 0:00:57]} 35... Nxf5+ {[%clk 0:00:16.5]} 36. Kf2 {[%clk 0:00:56.6]}
36... Ne3 {[%clk 0:00:14.6]} 37. Ng3 {[%clk 0:00:52.5]} 37... c5 {[%clk
0:00:12.4]} 38. bxc5 {[%clk 0:00:51.7]} 38... bxc5 {[%clk 0:00:13.3]} 39. Ne4
{[%clk 0:00:50.9]} 39... R8a5 {[%clk 0:00:11.8]} 40. b4 {[%clk 0:00:46.1]} 40...
cxb4 {[%clk 0:00:10.8]} 41. Rxb4 {[%clk 0:00:47]} 41... h5 {[%clk 0:00:09.6]}
42. Rb6+ {[%clk 0:00:44.7]} 42... Kf5 {[%clk 0:00:06.9]} 43. Ng3+ {[%clk
0:00:36.5]} 43... Ke5 {[%clk 0:00:06.3]} 44. Rb2 {[%clk 0:00:21.3]} 44... h4
{[%clk 0:00:05.9]} 45. Ne4 {[%clk 0:00:20.8]} 45... g4 {[%clk 0:00:06.4]} 46. c5
{[%clk 0:00:15.7]} 46... Kf4 {[%clk 0:00:06.6]} 47. c6 {[%clk 0:00:13.5]} 47...
Ra8 {[%clk 0:00:06.4]} 48. c7 {[%clk 0:00:12.2]} 48... Rc8 {[%clk 0:00:06.5]}
49. Raxa2 {[%clk 0:00:11.9]} 49... Rxa2 {[%clk 0:00:06.6]} 50. Rxa2 {[%clk
0:00:12.8]} 50... Rxc7 {[%clk 0:00:07.1]} 51. Ra6 {[%clk 0:00:11.5]} 51... g3+
{[%clk 0:00:07.4]} 52. Ke1 {[%clk 0:00:10.6]} 52... h3 {[%clk 0:00:07.7]} 53.
Rf6+ {[%clk 0:00:09.8]} 53... Ke5 {[%clk 0:00:08]} 54. Rh6 {[%clk 0:00:04.4]}
54... Rc1+ {[%clk 0:00:06.5]} 55. Kd2 {[%clk 0:00:04.4]} 55... Rc2+ {[%clk
0:00:06.7]} 56. Ke1 {[%clk 0:00:04.3]} 56... Rc1+ {[%clk 0:00:06.2]} 57. Kd2
{[%clk 0:00:04.8]} 57... g2 {[%clk 0:00:06.8]} 58. Rg6 {[%clk 0:00:02.1]} 58...
g1=Q {[%clk 0:00:07]} 59. Rxg1 {[%clk 0:00:01.2]} 59... Rxg1 {[%clk 0:00:07.9]}
0-1